bitfinex/quotes_ETHUSD_20250517
["timestamp","ask_amount","ask_price","bid_price","bid_amount"]
[1747514063116,4.03470985,2478.5,2478.1,8.322]
[1747514063277,4.03470985,2478.5,2478.2,0.38355573]
[1747514063918,4.03489453,2478.4,2478.2,0.38355573]
[1747514064907,4.03483039,2478.5,2478.3,0.93355573]
[1747514065107,4.0348612,2478.4,2478.3,0.93355573]
[1747514070935,7.765,2478.7,2478.4,1.3647]
[1747514071440,7.765,2478.7,2478.5,0.38355573]
[1747514071641,4.03420565,2478.9,2478.5,0.38355573]
[1747514071940,4.03422929,2478.8,2478.5,0.38355573]
[1747514072433,4.03441689,2478.7,2478.6,0.38355573]
[1747514074263,12.79893971,2479.0,2478.6,0.38355573]
[1747514074397,4.03417611,2478.9,2478.6,0.38355573]
[1747514074895,7.764,2478.9,2478.6,0.38355573]
[1747514075100,4.03437285,2478.7,2478.4,1.3647]
[1747514075301,4.0348612,2478.4,2478.3,0.48072088]
[1747514075601,4.03477829,2478.5,2478.3,0.48072088]
[1747514076931,4.0348612,2478.4,2478.3,1.03072088]
[1747514077700,4.03479275,2478.5,2478.3,1.03072088]
[1747514078200,4.0348612,2478.4,2478.3,0.93312126]
[1747514078630,11.79754703,2478.6,2478.3,1.20792126]
[1747514079400,4.03470371,2478.5,2478.4,0.38312126]
[1747514079799,7.763,2478.6,2478.4,0.38312126]
[1747514079800,11.79762213,2478.6,2478.4,0.38312126]
[1747514080427,4.0344166,2478.7,2478.4,0.38312126]
[1747514080621,7.763,2478.6,2478.4,0.38312126]
[1747514080936,7.763,2478.6,2478.5,0.38312126]
[1747514081605,11.79753562,2478.6,2478.5,0.38312126]
[1747514084353,1.0998,2479.0,2478.5,0.38312126]
[1747514084657,11.7961714,2478.9,2478.6,0.55]
[1747514085452,11.7961714,2478.9,2478.7,0.38312126]
[1747514085653,1.0,2479.0,2478.7,0.38312126]
[1747514085831,8.761,2479.0,2478.8,0.55]
[1747514086027,12.79489022,2479.0,2478.8,0.55]
[1747514086853,5.03389022,2479.0,2478.8,0.55]
[1747514087363,5.03389022,2479.0,2478.9,0.38312126]
[1747514091046,12.79389022,2479.0,2478.9,0.38312126]
[1747514093263,1.0,2479.0,2478.9,13.74896861]
[1747514093447,1.0,2479.0,2478.9,23.1924088]
[1747514093649,1.0,2479.0,2478.9,40.6164088]
[1747514095549,0.03249329,2479.0,2478.9,40.6164088]
[1747514097385,7.757,2480.1,2479.7,0.55]
[1747514097539,11.78911457,2480.1,2479.7,0.55]
[1747514097882,11.78911457,2480.1,2479.7,4.58273936]
[1747514098068,7.757,2480.1,2479.7,0.55]
[1747514098381,7.757,2480.1,2479.7,4.58274188]
[1747514098888,7.757,2480.1,2479.8,4.03254923]
[1747514099447,7.757,2480.1,2479.8,3.03254923]
[1747514099639,7.8558,2480.2,2479.8,3.03254923]
[1747514100059,7.8558,2480.2,2479.7,0.55]
[1747514100479,7.8558,2480.2,2479.8,4.03257193]
[1747514100648,7.755,2480.1,2479.7,4.58267695]
[1747514100844,11.78579874,2480.9,2479.9,1.3318]
[1747514101147,7.755,2480.9,2480.1,9.3318]
[1747514101484,0.0998,2482.2,2481.5,0.55]
[1747514101655,4.02765837,2482.9,2482.0,4.02900886]
[1747514101857,7.755,2483.0,2481.9,4.02916584]
[1747514101858,1.69486947,2482.5,2481.9,0.55]
[1747514102056,1.69486947,2482.5,2482.0,4.02900886]
[1747514102256,1.59506947,2482.5,2482.0,4.02900886]
[1747514102575,1.59506947,2482.5,2482.0,4.6192977]
[1747514102796,4.12754461,2482.8,2482.0,4.6192977]
[1747514102797,4.12754461,2482.8,2482.0,5.78496701]
[1747514102945,0.0998,2482.8,2482.0,6.52647817]
[1747514103147,7.754,2482.9,2482.0,14.52647817]
[1747514103379,0.0998,2483.2,2482.0,14.52647817]
[1747514103554,4.02746249,2483.0,2482.0,22.28147817]
[1747514103760,4.02728058,2483.1,2482.0,22.28147817]
[1747514103959,4.02738843,2483.0,2482.0,14.52647817]
[1747514104257,4.02756214,2482.9,2482.0,30.03547817]
[1747514104484,4.02727144,2483.1,2482.0,30.03547817]
[1747514104485,4.02744662,2483.0,2482.0,30.03547817]
[1747514104786,4.02798261,2482.7,2482.0,18.24946931]
[1747514105152,4.02776825,2482.8,2482.0,22.27847817]
[1747514105654,7.8538,2483.2,2482.0,22.27847817]
[1747514105878,4.02803023,2482.7,2482.0,18.24946931]
[1747514106060,4.02869682,2482.2,2482.0,0.85082451]
[1747514106259,0.04426479,2482.1,2481.7,7.752]
[1747514106489,0.01,2482.1,2481.7,7.752]
[1747514107079,4.02917119,2481.9,2481.7,7.752]
[1747514107278,4.02974856,2481.6,2481.3,0.47748381]
[1747514107909,11.78056881,2481.7,2481.3,0.47748381]
[1747514108123,11.78056675,2481.7,2481.3,0.7780363]
[1747514108410,0.0998,2481.9,2481.3,1.69450444]
[1747514108713,4.02952294,2481.7,2481.3,0.7780363]
[1747514108885,4.02952294,2481.7,2481.4,0.55]
[1747514109310,4.02969379,2481.6,2481.4,0.55]
[1747514110508,4.02982067,2481.5,2481.4,0.55]
[1747514110812,4.02998307,2481.4,2481.3,0.47748381]
[1747514113212,4.83596587,2481.4,2481.3,0.47748381]
[1747514114202,12.59596587,2481.4,2481.3,0.47748381]
[1747514114495,11.78998307,2481.4,2481.3,0.47748381]
[1747514114697,4.02998307,2481.4,2481.3,0.47748381]
[1747514115029,11.78998307,2481.4,2481.3,0.47748381]
[1747514116230,11.88978307,2481.4,2481.3,0.47748381]
[1747514118200,4.02998307,2481.4,2481.3,0.47748381]
[1747514119806,5.6113662,2481.4,2481.3,0.47748381]
[1747514120144,13.3663662,2481.4,2481.3,0.47748381]
[1747514121742,9.33638313,2481.4,2480.8,0.55]
[1747514121941,4.03047728,2481.1,2480.8,0.55]
[1747514123050,4.03004938,2481.4,2481.0,0.55]
[1747514123349,4.03027036,2481.3,2481.0,0.55]
[1747514124614,4.03038829,2481.2,2481.0,0.55]
[1747514124815,4.03038829,2481.2,2481.1,0.92979351]
[1747514126138,4.0302366,2481.3,2481.1,0.92979351]
[1747514127152,4.12935126,2481.7,2481.2,0.55]
[1747514127352,4.02982693,2481.5,2481.2,0.55]
[1747514128062,4.02982693,2481.5,2481.3,0.37979351]
[1747514128355,4.02907872,2482.0,2481.4,0.55]
[1747514128516,4.02907657,2482.0,2481.4,4.57989195]
[1747514128849,4.02917119,2481.9,2481.4,4.57989195]
[1747514129053,4.0293386,2481.8,2481.6,0.55]
[1747514129234,4.0292069,2481.9,2481.6,0.55]
[1747514130155,4.0292069,2481.9,2481.8,0.47748381]
[1747514130835,4.83602876,2481.9,2481.8,0.47748381]
[1747514131741,4.83602876,2481.9,2481.8,0.85727732]
[1747514132563,4.83602876,2481.9,2481.8,0.37979351]
[1747514132947,4.93582876,2481.9,2481.8,0.37979351]
[1747514133854,12.93582876,2481.9,2481.8,0.37979351]
[1747514138780,20.68382876,2481.9,2481.8,0.37979351]
[1747514139154,12.93582876,2481.9,2481.8,0.37979351]
[1747514139346,20.68382876,2481.9,2481.8,0.37979351]
[1747514139547,0.01,2482.1,2481.8,0.37979351]
[1747514139841,7.759,2482.1,2481.8,0.37979351]
[1747514140046,4.02917119,2481.9,2481.8,0.37979351]
[1747514144180,4.12897119,2481.9,2481.8,0.37979351]
[1747514145081,12.12897119,2481.9,2481.8,0.37979351]
[1747514146085,4.02965828,2481.6,2481.5,0.47748381]
[1747514146291,11.77765828,2481.6,2481.5,0.47748381]
[1747514147975,11.77765828,2481.6,2481.5,0.38203075]
[1747514152389,4.02965828,2481.6,2481.5,0.38203075]
[1747514152592,11.77765828,2481.6,2481.5,0.38203075]
[1747514153469,14.13317727,2481.6,2481.5,0.38203075]
[1747514154963,4.02998307,2481.4,2481.0,1.29338381]
[1747514155164,4.03036747,2481.2,2481.0,1.29338381]
[1747514156065,4.03036747,2481.2,2481.1,0.3822443]
[1747514160517,4.03023528,2481.3,2481.1,0.3822443]
[1747514160688,4.02974833,2481.6,2481.1,1.00788574]
[1747514160890,4.02991787,2481.5,2481.1,0.3822443]
[1747514161216,4.02998638,2481.4,2481.2,0.3822443]
[1747514161516,11.77788748,2481.5,2481.2,0.3822443]
[1747514161815,4.03004566,2481.4,2481.2,0.3822443]
[1747514161981,11.77788748,2481.5,2481.2,0.3822443]
[1747514162413,4.03014548,2481.3,2481.2,0.3822443]
[1747514162608,4.03014548,2481.3,2481.2,0.47748381]
[1747514163721,11.77814548,2481.3,2481.2,0.47748381]
[1747514163885,11.77814548,2481.3,2481.2,0.8604861]
[1747514165591,11.77814548,2481.3,2481.2,0.38300229]
[1747514167233,13.35896054,2481.3,2481.2,0.38300229]
[1747514168265,11.77814548,2481.3,2481.2,0.38300229]
[1747514169022,19.52614548,2481.3,2481.2,0.38300229]
[1747514169823,4.03014548,2481.3,2481.2,0.38300229]
[1747514170133,11.77714548,2481.3,2481.2,0.38300229]
[1747514173660,7.747,2481.3,2481.2,0.38300229]
[1747514173827,11.77714548,2481.3,2481.2,0.38300229]
[1747514177060,4.03014548,2481.3,2481.2,0.38300229]
[1747514177265,11.77714548,2481.3,2481.2,0.38300229]
[1747514178862,13.35786623,2481.3,2481.2,0.38300229]
[1747514179075,36.7470405,2481.3,2481.2,0.38300229]
[1747514179279,12.03047035,2481.1,2481.0,0.47748381]
[1747514179431,27.52647035,2481.1,2481.0,0.47748381]
[1747514179862,4.03128275,2480.6,2480.5,0.8041]
[1747514180168,11.77828275,2480.6,2480.5,0.8041]
[1747514180474,11.77828275,2480.6,2480.3,1.28158381]
[1747514180475,4.0316078,2480.4,2480.3,1.28158381]
[1747514180675,4.0316078,2480.4,2480.3,1.83158381]
[1747514180969,11.77833312,2480.6,2480.4,0.55]
[1747514181462,4.03144527,2480.5,2480.4,0.55]
[1747514181763,7.747,2480.5,2480.3,0.47748381]
[1747514182064,4.0316078,2480.4,2480.3,1.02748381]
[1747514182651,11.77850601,2480.5,2480.3,1.02748381]
[1747514183233,11.77850601,2480.5,2480.3,0.55]
[1747514183435,11.7796078,2480.4,2480.3,0.55]
[1747514184866,7.748,2480.4,2480.3,0.55]
[1747514185079,4.03113348,2480.7,2480.4,0.55]
[1747514185282,7.747,2480.6,2480.4,0.55]
[1747514185581,7.74284029,2480.6,2480.4,0.55]
[1747514185786,4.03111341,2480.8,2480.3,4.58164839]
[1747514186082,4.03096385,2480.8,2480.5,0.55]
[1747514186382,7.748,2480.9,2480.7,0.55]
[1747514186738,4.12975982,2481.5,2480.7,4.58110548]
[1747514187091,4.03040749,2481.2,2480.9,0.55]
[1747514187761,11.778485,2481.1,2480.9,0.55]
[1747514187956,4.03177035,2480.3,2480.0,0.63664508]
[1747514188373,11.90877035,2480.3,2480.0,0.63664508]
[1747514188539,11.90879871,2480.3,2480.0,0.55]
[1747514188741,4.031942,2480.2,2479.9,1.28158381]
[1747514188956,4.031942,2480.2,2480.0,0.55]
[1747514189163,4.031942,2480.2,2479.9,1.28158381]
[1747514189580,4.03211957,2480.1,2480.0,0.55]
[1747514189765,4.03225806,2480.0,2479.9,0.47748381]
[1747514190155,11.78225806,2480.0,2479.9,0.47748381]
[1747514190781,4.03268528,2479.8,2479.5,0.47748381]
[1747514190963,7.9668,2479.7,2479.5,0.47748381]
[1747514191152,4.03290853,2479.6,2479.5,0.47748381]
[1747514191356,7.875,2479.6,2479.5,0.47748381]
[1747514191654,7.875,2479.6,2479.5,1.85578381]
[1747514191865,7.877,2479.7,2479.6,0.55]
[1747514192773,7.877,2479.7,2479.6,0.93221374]
[1747514192981,0.0998,2480.5,2479.8,0.55]
[1747514193283,4.03206595,2480.2,2479.8,0.55]
[1747514193579,4.03219759,2480.1,2479.7,0.55]
[1747514194282,4.03197949,2480.2,2479.8,0.38221374]
[1747514194602,4.03215277,2480.1,2479.8,0.38221374]
[1747514195278,4.03215277,2480.1,2479.7,0.55]
[1747514196480,7.858,2480.0,2479.7,0.55]
[1747514196775,4.03204164,2480.2,2479.7,4.58270727]
[1747514196958,7.856,2480.1,2479.7,4.58270727]
[1747514197283,11.88809696,2480.1,2479.7,0.55]
[1747514197881,4.03177684,2480.3,2480.0,0.8246]
[1747514198070,11.88393633,2480.2,2480.0,0.8246]
[1747514198270,4.03209548,2480.1,2480.0,0.8246]
[1747514198450,4.03226463,2480.0,2479.8,0.8246]
[1747514199480,1.5916201,2480.0,2479.5,0.7582]
[1747514199651,4.03233837,2480.0,2479.5,4.7911583]
[1747514199852,4.03233837,2480.0,2479.6,0.55]
[1747514200050,4.03242422,2479.9,2479.6,0.55]
[1747514200250,4.03235142,2480.0,2479.6,0.55]
[1747514201480,4.03235142,2480.0,2479.7,0.38151777]
[1747514201682,7.84,2479.9,2479.8,0.55]
[1747514202383,7.84,2479.9,2479.7,0.93151777]
[1747514202587,7.84,2479.9,2479.8,0.55]
[1747514202955,7.84,2479.9,2479.8,0.38151777]
[1747514204454,4.03213199,2480.1,2479.8,0.38151777]
[1747514204651,4.03183005,2480.3,2479.9,4.03241019]
[1747514204859,15.705,2480.2,2480.0,0.7573]
[1747514205689,19.73694642,2480.2,2480.0,0.7573]
[1747514206191,15.705,2480.2,2479.8,1.13881777]
[1747514206490,4.03209548,2480.1,2479.8,0.7573]
[1747514206894,4.02902048,2480.1,2479.8,0.7573]
[1747514208294,0.0998,2480.0,2479.5,0.47748381]
[1747514208470,7.826,2479.9,2479.5,4.51055231]
[1747514208665,7.826,2479.8,2479.5,0.47748381]
[1747514209075,11.85858574,2479.8,2479.5,0.47748381]
[1747514209270,4.03277327,2479.7,2479.5,0.47748381]
[1747514209485,4.03290853,2479.6,2479.5,0.47748381]
[1747514210498,4.03290853,2479.6,2479.5,0.38232301]
[1747514211595,4.03290853,2479.6,2479.2,0.55]
[1747514213100,4.03277327,2479.7,2479.2,4.58352075]
[1747514213299,0.0998,2479.6,2479.2,4.58352075]
[1747514213503,4.03348689,2479.3,2479.1,0.47789629]
[1747514213802,7.812,2479.2,2479.1,0.47789629]
[1747514215282,7.812,2479.2,2479.1,0.86029685]
[1747514215603,7.807,2479.5,2479.2,1.3165]
[1747514215903,7.807,2479.5,2479.3,4.5833234]
[1747514216585,7.807,2479.5,2479.4,0.38240056]
[1747514218105,11.84007118,2479.5,2479.4,0.38240056]
[1747514218813,7.807,2479.5,2479.4,0.38240056]
[1747514219310,11.84007118,2479.5,2479.4,0.38240056]
[1747514219511,13.0240783,2479.5,2479.4,0.38240056]
[1747514219714,11.84007118,2479.5,2479.4,0.38240056]
[1747514220875,7.807,2479.5,2479.4,0.38240056]
[1747514221075,7.789,2479.5,2479.4,0.38240056]
[1747514221772,7.789,2479.5,2479.4,5.72051826]
[1747514222005,7.789,2479.5,2479.4,1.68730056]
[1747514224025,7.789,2479.5,2479.4,0.38240056]
[1747514224225,11.82207118,2479.5,2479.4,0.38240056]
[1747514225184,13.41756505,2479.5,2479.4,0.38240056]
[1747514225684,15.571,2479.5,2479.4,0.38240056]
[1747514226212,7.789,2479.7,2479.4,0.55]
[1747514226430,7.781,2479.5,2479.4,0.55]
[1747514228418,11.81407118,2479.5,2478.9,0.47789629]
[1747514228584,4.03330378,2479.4,2479.1,0.7586]
[1747514229118,4.03330378,2479.4,2479.2,0.38317685]
[1747514229425,4.03339652,2479.3,2479.2,0.38317685]
[1747514229917,4.03330515,2479.4,2479.2,0.38317685]
[1747514230080,11.81413774,2479.5,2479.3,0.38317685]
[1747514230491,7.789,2479.6,2479.4,0.55]
[1747514230686,7.773,2479.5,2479.4,0.55]
[1747514231417,7.773,2479.5,2479.4,0.93317685]
[1747514234919,11.80607118,2479.5,2479.4,0.38317685]
[1747514235106,14.26866991,2479.5,2479.4,0.38317685]
[1747514235495,14.16886991,2479.5,2479.4,0.38317685]
[1747514235701,11.80607118,2479.5,2479.4,0.38317685]
[1747514237428,8.0,2479.9,2479.4,1.18737685]
[1747514237638,4.03288823,2479.7,2479.4,1.18737685]
[1747514238526,4.03288823,2479.7,2479.5,0.38317685]
[1747514239025,4.03290853,2479.6,2479.5,0.38317685]
[1747514240930,6.49387478,2479.6,2479.5,0.38317685]
[1747514241530,6.52813957,2479.6,2479.5,0.38317685]
[1747514243132,2.49523104,2479.6,2479.1,0.47789629]
[1747514243293,4.03355921,2479.2,2479.1,0.47789629]
[1747514243503,11.824824,2479.2,2479.1,0.47789629]
[1747514243823,11.79055921,2479.2,2479.1,0.47789629]
[1747514244711,7.757,2479.2,2479.1,0.86206868]
[1747514245631,11.79055921,2479.2,2479.1,0.86206868]
[1747514246034,11.79055921,2479.2,2479.1,0.38417239]
[1747514247340,7.757,2479.2,2479.1,0.38417239]
[1747514247503,11.79055921,2479.2,2479.1,0.38417239]
[1747514248331,7.757,2479.2,2479.1,0.38417239]
[1747514248533,11.79055921,2479.2,2479.1,0.38417239]
[1747514249337,11.89035921,2479.2,2479.1,0.38417239]
[1747514249542,12.59622056,2479.2,2479.1,0.38417239]
[1747514252321,4.03388463,2479.0,2478.7,0.47789629]
[1747514252632,7.757,2478.9,2478.7,4.5122406]
[1747514252834,15.514,2478.9,2478.7,0.47789629]
[1747514253753,15.514,2478.9,2478.8,0.3837763]
[1747514253954,7.757,2478.9,2478.8,1.47838963]
[1747514254142,15.514,2478.9,2478.8,1.47838963]
[1747514254320,15.514,2478.9,2478.8,0.9337763]
[1747514255147,15.514,2478.9,2478.8,0.3837763]
[1747514255355,19.54804735,2478.9,2478.8,0.3837763]
[1747514255532,15.514,2478.9,2478.8,0.3837763]
[1747514256051,19.54804735,2478.9,2478.8,0.3837763]
[1747514258860,15.514,2478.9,2478.8,0.3837763]
[1747514259157,19.54804735,2478.9,2478.8,0.3837763]
[1747514261455,15.514,2478.9,2478.8,0.3837763]
[1747514264129,22.00601647,2478.9,2478.8,0.3837763]
[1747514264529,6.49201647,2478.9,2478.8,0.3837763]
[1747514264734,19.64884735,2478.9,2478.8,0.3837763]
[1747514266037,4.03437285,2478.7,2478.6,0.47789629]
[1747514266238,0.0998,2479.1,2478.6,0.47789629]
[1747514266439,7.757,2479.0,2478.6,0.47789629]
[1747514266674,7.757,2479.0,2478.8,0.7747]
[1747514267046,11.79093549,2479.0,2478.8,0.7747]
[1747514267250,4.03404735,2478.9,2478.7,1.00125188]
[1747514267450,4.03404735,2478.9,2478.7,0.55]
[1747514268270,7.757,2479.0,2478.6,0.7747]
[1747514268470,7.757,2479.0,2478.5,0.47789629]
[1747514268471,4.03453562,2478.6,2478.5,0.47789629]
[1747514268664,4.06880041,2478.6,2478.5,0.47789629]
[1747514269039,4.03453562,2478.6,2478.5,0.47789629]
[1747514269272,4.03453562,2478.6,2478.5,0.86182877]
[1747514269871,4.03447266,2478.7,2478.5,0.86182877]
[1747514270578,4.03453562,2478.6,2478.5,0.86182877]
[1747514271343,4.03453562,2478.6,2478.5,0.38393248]
[1747514271538,4.94121663,2478.6,2478.5,0.38393248]
[1747514271869,4.13433562,2478.6,2478.5,0.38393248]
[1747514272868,15.516,2478.6,2478.5,0.38393248]
[1747514274575,19.55053562,2478.6,2478.5,0.38393248]
[1747514278789,4.03496189,2478.4,2478.1,0.47789629]
[1747514279351,4.03479552,2478.5,2478.1,0.47789629]
[1747514279562,4.03486913,2478.4,2478.1,0.47789629]
[1747514279974,4.03486913,2478.4,2477.9,5.46827601]
[1747514280170,15.516,2478.6,2477.9,1.43269506]
[1747514280369,4.03551251,2478.0,2477.9,0.63719506]
[1747514280570,4.03551251,2478.0,2477.6,0.7559]
[1747514280571,11.79251251,2478.0,2477.8,0.63719506]
[1747514280856,7.757,2478.0,2477.8,0.63719506]
[1747514281256,7.759,2478.2,2477.9,4.79150734]
[1747514281450,7.757,2478.1,2477.9,0.7559]
[1747514281671,11.79243168,2478.1,2477.8,0.63719506]
[1747514281895,11.79243168,2478.1,2478.0,0.38405378]
[1747514282601,11.89223168,2478.1,2478.0,0.38405378]
[1747514282802,14.25090572,2478.1,2478.0,0.38405378]
[1747514282954,24.30090572,2478.1,2478.0,0.38405378]
[1747514283990,4.03573124,2477.9,2477.7,0.38405378]
[1747514284785,7.758,2477.8,2477.7,0.38405378]
[1747514288904,11.79383824,2477.8,2477.7,0.38405378]
[1747514289102,14.16257152,2477.8,2477.7,0.38405378]
[1747514290007,4.03616402,2477.6,2477.1,5.30400353]
[1747514290206,4.03636029,2477.5,2477.1,1.26705275]
[1747514290574,4.03636029,2477.5,2477.1,5.30402856]
[1747514290769,4.03636029,2477.5,2477.1,1.26705275]
[1747514291183,4.03660749,2477.4,2477.1,1.26705275]
[1747514291388,7.79326479,2477.3,2477.1,0.47975275]
[1747514291594,11.79577001,2477.3,2477.1,0.47975275]
[1747514291798,11.79577001,2477.3,2477.2,0.38350124]
[1747514292418,11.79119603,2477.3,2477.2,0.38350124]
[1747514292922,0.0998,2477.2,2476.7,0.47975275]
[1747514293080,4.03722568,2477.0,2476.7,0.47975275]
[1747514293807,4.03699166,2477.1,2476.7,0.47975275]
[1747514294117,4.03732425,2476.9,2476.7,0.47975275]
[1747514294319,7.759,2476.9,2476.8,0.38321228]
[1747514296028,0.0998,2477.4,2476.9,0.7873]
[1747514296184,10.05,2477.6,2477.0,4.03701685]
[1747514296185,15.519,2477.3,2477.0,4.03701685]
[1747514296809,15.519,2477.3,2476.9,4.82452068]
[1747514297080,19.55566525,2477.3,2476.9,4.82452068]
[1747514297323,15.519,2477.3,2476.9,4.82452068]
[1747514297510,15.519,2477.3,2477.0,4.03713673]
[1747514298213,4.03616402,2477.6,2477.1,4.03694366]
[1747514298388,15.52,2477.5,2477.1,0.7873]
[1747514298581,0.0998,2477.9,2477.2,0.55]
[1747514298828,0.0998,2477.9,2477.5,4.82355179]
[1747514298829,7.76,2477.8,2477.5,4.82355179]
[1747514298986,11.79593442,2477.8,2477.5,0.7873]
[1747514299428,7.76,2477.8,2477.5,0.7873]
[1747514299734,11.79587464,2477.8,2477.5,0.7873]
[1747514299931,4.03638295,2477.5,2477.0,0.7873]
[1747514300139,4.03658037,2477.4,2477.0,0.7873]
[1747514300282,7.76,2477.3,2477.0,0.7873]
[1747514301736,4.03681575,2477.2,2477.0,0.7873]
[1747514301932,4.03721436,2477.0,2476.8,0.7873]
[1747514302085,4.03705159,2477.1,2476.8,0.7873]
[1747514302716,4.03705159,2477.1,2476.9,0.38305094]
[1747514302907,11.79672812,2477.3,2476.9,0.38305094]
[1747514303107,4.03686307,2477.2,2476.9,0.38305094]
[1747514303721,7.76,2477.1,2476.9,0.38305094]
[1747514304031,11.79710908,2477.1,2476.9,0.38305094]
[1747514304231,11.79710908,2477.1,2476.8,0.7873]
[1747514305525,7.76,2477.1,2476.8,4.82474559]
[1747514305826,4.03673889,2477.3,2476.8,1.72151266]
[1747514306027,7.76,2477.2,2476.9,4.03729974]
[1747514306228,7.76,2477.2,2476.8,5.75890326]
[1747514306529,4.03657928,2477.4,2476.8,5.75895292]
[1747514306705,7.76,2477.1,2476.8,5.75890253]
[1747514307422,7.76,2477.1,2476.8,1.72151266]
[1747514308123,7.76,2477.1,2476.9,0.3832774]
[1747514310029,11.79699898,2477.1,2476.9,0.3832774]
[1747514310333,11.79699898,2477.1,2477.0,0.3832774]
[1747514310534,7.76,2477.1,2477.0,0.3832774]
[1747514311244,7.76,2477.1,2476.9,0.3832774]
[1747514312223,11.79699013,2477.1,2476.9,0.3832774]
[1747514313019,11.79699013,2477.1,2477.0,0.3832774]
[1747514314050,7.761,2477.4,2476.8,0.7873]
[1747514314051,4.03654298,2477.4,2476.9,0.3832774]
[1747514314231,19.55671599,2477.3,2476.9,0.3832774]
[1747514314435,4.03682213,2477.2,2476.9,0.3832774]
[1747514315025,15.52,2477.3,2476.9,4.42055645]
[1747514315437,4.03700486,2477.1,2476.9,0.3832774]
[1747514316037,4.03690152,2477.2,2476.9,0.3832774]
[1747514316525,4.03690152,2477.2,2477.0,0.3832774]
[1747514317214,4.03690152,2477.2,2477.1,0.3832774]
[1747514321240,4.07116631,2477.2,2477.1,0.3832774]
[1747514321445,4.17096631,2477.2,2477.1,0.3832774]
[1747514322050,4.13670152,2477.2,2477.1,0.3832774]
[1747514322554,4.84456486,2477.2,2477.1,0.3832774]
[1747514326744,4.84456486,2477.2,2476.6,1.26685275]
[1747514326745,4.03730469,2476.9,2476.6,1.26685275]
[1747514326944,7.76,2476.8,2476.6,1.26685275]
[1747514327845,7.76,2476.8,2476.7,0.38437098]
[1747514332299,4.03719855,2477.0,2476.7,0.38437098]
[1747514332450,7.759,2476.8,2476.7,0.38437098]
[1747514332639,7.759,2476.8,2476.7,0.47975275]
[1747514333571,4.03705626,2477.1,2476.7,0.86442445]
[1747514333779,7.759,2477.0,2476.7,5.49616136]
[1747514334144,7.759,2477.0,2476.8,0.7822]
[1747514335071,4.03691536,2477.2,2476.8,0.7822]
[1747514335287,4.03673954,2477.3,2477.2,0.00547957]
[1747514335446,11.79573954,2477.3,2477.2,0.00547957]
[1747514336262,11.79573954,2477.3,2477.2,0.39015127]
[1747514337479,4.03673954,2477.3,2477.2,0.39015127]
[1747514337784,11.79473954,2477.3,2477.2,0.39015127]
[1747514339377,14.16394373,2477.3,2477.2,0.39015127]
[1747514342341,11.79473954,2477.3,2477.2,0.39015127]
[1747514345178,11.7936528,2477.3,2477.2,0.39015127]
[1747514346965,7.757,2477.3,2477.2,0.39015127]
[1747514347164,7.756,2477.4,2477.2,5.19477252]
[1747514347364,7.756,2477.4,2477.2,1.15805127]
[1747514347592,7.756,2477.4,2477.2,1.67754788]
[1747514348888,4.0366528,2477.3,2477.2,0.39015127]
[1747514349047,4.0366528,2477.3,2477.2,0.48523232]
[1747514350287,4.03619195,2477.6,2477.2,0.48523232]
[1747514350494,7.755,2477.4,2477.3,0.7651]
[1747514350655,27.487,2477.8,2477.3,1.29382292]
[1747514350850,11.79106866,2477.7,2477.3,0.7651]
[1747514351557,4.13538438,2478.0,2477.6,4.03613307]
[1747514351870,4.13538438,2478.0,2477.7,0.38429648]
[1747514351871,11.79068589,2477.9,2477.7,0.38429648]
[1747514352593,4.03543126,2478.1,2477.7,0.38429648]
[1747514352750,7.755,2477.8,2477.7,0.38429648]
[1747514353287,4.03559623,2478.0,2477.7,0.38429648]
[1747514353585,7.755,2477.8,2477.7,0.38429648]
[1747514356696,7.75206909,2477.8,2477.7,0.38429648]
[1747514361897,4.03554968,2478.0,2477.7,0.38429648]
[1747514362061,7.751,2477.9,2477.7,0.38429648]
[1747514362464,7.751,2477.8,2477.7,0.38429648]
[1747514362879,7.751,2477.8,2477.6,4.80122911]
[1747514363082,7.751,2477.8,2477.6,5.73297215]
[1747514364493,7.75,2477.8,2477.7,4.41956958]
[1747514364904,7.75,2477.8,2477.7,0.3835984]
[1747514366911,7.75,2477.9,2477.7,4.41950064]
[1747514367107,7.75,2477.9,2477.7,5.43475032]
[1747514367334,7.75,2478.0,2477.9,0.8287]
[1747514368113,7.75,2478.0,2477.9,1.2122984]
[1747514368401,7.75,2478.0,2477.9,0.3835984]
[1747514369404,7.78426479,2478.0,2477.9,0.3835984]
[1747514369607,7.75,2478.0,2477.9,0.3835984]
[1747514371623,13.41182767,2478.0,2477.9,0.3835984]
[1747514371795,13.37756288,2478.0,2477.9,0.3835984]
[1747514373240,4.03568127,2477.9,2477.5,5.0660512]
[1747514373711,11.78560404,2478.0,2477.5,5.0660512]
[1747514374714,7.75,2478.0,2477.6,4.4199931]
[1747514374907,4.13503685,2478.2,2477.6,5.44850753]
[1747514375107,7.747,2477.9,2477.7,0.7991]
[1747514375417,7.754,2478.2,2477.7,0.7991]
[1747514375606,21.47177544,2478.5,2478.0,4.03550463]
[1747514375807,29.21877544,2478.5,2478.1,4.83443237]
[1747514376114,7.747,2478.4,2478.1,0.7991]
[1747514376486,11.78190095,2478.4,2478.1,0.7991]
[1747514377525,4.03506903,2478.3,2478.1,0.7991]
[1747514377815,4.03506903,2478.3,2478.2,0.38392972]
[1747514378416,11.78106903,2478.3,2478.2,0.38392972]
[1747514379302,7.746,2478.3,2478.2,0.38392972]
[1747514379916,4.03491713,2478.4,2478.2,0.38392972]
[1747514380085,7.745,2478.3,2478.2,0.38392972]
[1747514384729,11.780024,2478.3,2478.2,0.38392972]
[1747514384925,7.745,2478.3,2478.2,0.38392972]
[1747514385331,13.36149241,2478.3,2478.2,0.38392972]
[1747514386090,11.780024,2478.3,2478.2,0.38392972]
[1747514386731,7.745,2478.3,2478.2,0.38392972]
[1747514389326,11.780024,2478.3,2478.2,0.38392972]
[1747514389521,7.745,2478.3,2478.2,0.38392972]
[1747514392422,7.741,2478.3,2478.2,0.38392972]
[1747514392797,7.741,2478.3,2478.2,1.20742972]
[1747514393699,11.78059501,2478.6,2478.2,1.20742972]
[1747514393900,11.77570537,2478.5,2478.2,1.20742972]
[1747514394528,4.03470537,2478.5,2478.2,1.20742972]
[1747514394735,4.03470537,2478.5,2478.3,0.38392972]
[1747514394736,7.74,2478.5,2478.3,0.38392972]